Cogmind - Beta 16.1 @@@ ROGUE MODE // 2026.03.01 @ 07:06:21 Player: ae Result: Destroyed by as-01729 with Assembled F-torch Performance ------------- Evolutions (0) 0 Regions Visited (4) 800 Robots Destroyed (37) 185 Value Destroyed (672) 672 Prototype IDs (27) 540 Alien Tech Used (0) 0 Bonus (350) 350 TOTAL SCORE: 2547 Bonus ------- Follower Combat Kills 50 Aligned with FarCom 300 Cogmind --------- Core Integrity 0/250 Matter 286/300 Energy 160/160 System Corruption 8% Temperature Cool (20) Movement Treading (240) Ox1 Location -9/Mines Parts ------- > --- POWER (1) -------- Light Nuclear Core > --- PROPULSION (2) --- Light Treads Light Treads > --- UTILITY (2) ------ High-capacity Storage Unit Propulsion Shielding > --- WEAPON (2) ------- Assault Rifle Light Cannon > --- INVENTORY (20) --- Ion Engine Light Nuclear Core Light Nuclear Core Wheel Flying Fortress v7 Large Matter Pod (150) Improved Terrain Scanner Peak State ------------ > --- POWER ------------ Light Nuclear Core > --- PROPULSION ------- Light Treads Light Treads > --- UTILITY ---------- High-capacity Storage Unit Light Armor Plating > --- WEAPON ----------- Assault Rifle Assault Rifle > --- INVENTORY -------- Ion Engine Light Nuclear Core Light Nuclear Core Light Treads Wheel Flying Fortress v7 Large Matter Pod High-capacity Matter Pod Improved Terrain Scanner Propulsion Shielding Propulsion Shielding Assault Rifle Assault Rifle Light Cannon [Rating: 14] Favorites ----------- Power Ion Engine Engine Ion Engine Power Core Light Nuclear Core Propulsion Light Treads Treads Light Treads Wheel Wheel Utility High-capacity Storage Unit Device Improved Terrain Scanner Storage High-capacity Storage Unit Processor Machine Analyzer Protection Light Armor Plating Weapon Assault Rifle Ballistic Gun Assault Rifle Ballistic Cannon Light Cannon Build | -11 -10 -10 -10 -9 ------- Run | Yrd Mat Min Exi Min Slots Evolved . | . . . . . Power . | . . . . . Propulsion . | . . . . . Utility . | . . . . . Weapon . | . . . . . Parts Attached 26 | 7 9 1 1 8 Power 4 | 1 2 . . 1 Engine 3 | 1 2 . . . Core 1 | . . . . 1 Reactor . | . . . . . Propulsion 6 | 2 2 . 1 1 Treads 5 | 2 2 . . 1 Leg . | . . . . . Wheel 1 | . . . 1 . Hover . | . . . . . Flight . | . . . . . Utility 8 | 2 3 1 . 2 Device 1 | 1 . . . . Storage 3 | 1 2 . . . Processor 1 | . 1 . . . Hackware . | . . . . . Protection 3 | . . 1 . 2 Artifact . | . . . . . Weapon 8 | 2 2 . . 4 Energy Gun . | . . . . . Energy Cannon . | . . . . . Ballistic Gun 7 | 2 2 . . 3 Ballistic Cannon 1 | . . . . 1 Launcher . | . . . . . Special Weapon . | . . . . . Impact Weapon . | . . . . . Slashing Weapon . | . . . . . Piercing Weapon . | . . . . . Special Melee Weapon . | . . . . . Unidentified Prototypes . | . . . . . Parts Lost 9 | . . . . 9 Power 1 | . . . . 1 Propulsion 2 | . . . . 2 Utility 2 | . . . . 2 Weapon 4 | . . . . 4 Highest Loss Streak 5 | . . . . 5 To Critical Strikes 1 | . . . . 1 Average Backups 14 | 5 13 19 18 13 Power 2 | 1 2 3 4 3 Propulsion 2 | 3 2 3 3 3 Utility 5 | . 5 7 6 4 Weapon 3 | . 3 6 5 2 Tool/Special . | . . . . . Unused Backups 18 | 3 6 . 3 6 Power 4 | . 1 . . 3 Propulsion 7 | 2 4 . . 1 Utility 5 | 1 1 . 1 2 Weapon 2 | . . . 2 . Tool/Special . | . . . . . Average Slot Usage (%) 99 | . 99 100 100 99 Engine 13 | . 14 14 14 4 Treads 27 | . 28 28 25 23 Storage 14 | . 14 14 14 14 Processor 8 | . 13 6 . . Protection 4 | . . 7 14 14 Ballistic Gun 27 | . 27 28 28 25 Peak Build Rating 14 | 9 11 11 12 14 Average Rating 10 | 7 10 9 10 12 On Entrance 8 | . 9 11 9 12 Avg Prop Armor Cover (%) 9 | . . . 9 9 Naked Turns . | . . . . . Heaviest Build 52 | 14 49 52 52 52 Greatest Support 40 | 40 40 40 40 40 Greatest Overweight (x) 5 | . 1 1 5 5 Average Overweight (x) . | . . 1 2 4 Largest Inventory Capacity 20 | 8 20 20 20 20 Average Capacity 16 | 7 15 20 20 20 Most Carried 20 | 8 20 20 20 20 Average Carried 15 | 5 13 19 19 15 Final Capacity 20 | 8 20 20 20 20 Final Carried 20 | 8 20 20 20 10 Class Distribution -------------------- 100% | Mutant Dominant Class ---------------- Mutant | -10/Materials Mutant | -10/Mines Mutant | -10/Exiles Mutant | -9/Mines Resources | -11 -10 -10 -10 -9 ----------- Run | Yrd Mat Min Exi Min Matter Collected 1596 | 346 820 94 . 336 Remotely . | . . . . . Salvage Created 1262 | 189 669 220 . 184 Parts 93 | 16 60 12 . 5 Haulers Intercepted 2 | . 2 . . . Recyclers Shooed 3 | 3 . . . . Parts Field Recycled . | . . . . . Retrieved Matter . | . . . . . Parts Self-Destructed . | . . . . . Prevented . | . . . . . Parts Restored . | . . . . . Kills | -11 -10 -10 -10 -9 ------- Run | Yrd Mat Min Exi Min Combat Hostiles Destroyed 33 | . 13 7 . 13 Guns 31 | . 13 7 . 11 Cannons 2 | . . . . 2 Classes Destroyed 9 | 3 5 . . 1 Worker 4 | 1 3 . . . Tunneler 4 | 4 . . . . Hauler 2 | . 2 . . . Recycler 2 | 1 1 . . . Mechanic 1 | . 1 . . . Watcher 3 | . 3 . . . Swarmer 9 | . 6 3 . . Grunt 12 | . 7 4 . 1 Assembled 12 | . . . . 12 Best Kill Streak 9 | 2 3 5 . 9 Combat Bots Only 9 | . 3 5 . 9 Max Kills in Single Turn 2 | 1 2 1 . 2 Gunslinging . | . . . . . Exploded . | . . . . . Melee . | . . . . . Uniques/NPCs Destroyed . | . . . . . Combat | -11 -10 -10 -10 -9 -------- Run | Yrd Mat Min Exi Min Hostile Shots Fired 144 | . 47 24 . 73 Missed 34 | . 7 10 . 17 Hits 110 | . 40 14 . 56 Melee 21 | . . . . 21 Projectile 89 | . 40 14 . 35 Critical Strikes 4 | . . 1 . 3 Damage Taken 1672 | . 462 151 . 1059 Core 257 | . 93 29 . 135 Absorbed by Shields . | . . . . . Redirected to Shielding 50 | . . . . 50 Regen/Repaired (Parts) 29 | . 29 . . . Core Remaining (%) 100 | 100 . . . . Volleys Fired 133 | 19 58 14 . 42 Largest 2 | 2 2 2 . 2 Hottest 50 | 40 40 40 . 50 Shots Fired 266 | 38 116 28 . 84 Gun 258 | 38 116 28 . 76 Cannon 8 | . . . . 8 Launcher . | . . . . . Special . | . . . . . Kinetic 266 | 38 116 28 . 84 Thermal . | . . . . . Explosive . | . . . . . Electromagnetic . | . . . . . Robot Hit Streak 13 | 9 10 6 . 13 Robot Miss Streak 5 | 4 5 2 . 4 Penetration Max . | . . . . . Secondary Targets 5 | . 1 . . 4 Max Gunslinging Chain 1 | . 1 . . 1 Shots Hit Robots 161 | 20 70 19 . 52 Core Hits 86 | 9 36 13 . 28 Critical Kills 1 | 1 . . . . Critical Parts Destroyed 1 | 1 . . . . Critical Strikes 3 | 2 . . . 1 Destroy 2 | 2 . . . . Blast 1 | . . . . 1 Melee Attacks . | . . . . . Impact . | . . . . . Slashing . | . . . . . Piercing . | . . . . . Sneak Attacks . | . . . . . Combat Hostiles . | . . . . . Follow-up Attacks . | . . . . . Damage Inflicted 1960 | 216 776 241 . 727 Guns 1860 | 216 776 241 . 627 Cannons 100 | . . . . 100 Explosions . | . . . . . Melee . | . . . . . Ramming . | . . . . . Kinetic 1960 | 216 776 241 . 727 Thermal . | . . . . . Explosive . | . . . . . Electromagnetic . | . . . . . Impact . | . . . . . Slashing . | . . . . . Piercing . | . . . . . Highest Corruption 8 | . . . . 8 Average Corruption 4 | . . . . 4 Corruption Purged . | . . . . . Corruption Blocked . | . . . . . Effects 1 | . . . . 1 Data Loss (minor) 1 | . . . . 1 Overload Shots . | . . . . . Overflow Damage 13 | . . . . 13 Projectiles 13 | . . . . 13 Explosions . | . . . . . Melee . | . . . . . Knockbacks 2 | . . . . 2 Impact . | . . . . . Kinetic . | . . . . . Secondary 2 | . . . . 2 Self-Inflicted Damage . | . . . . . Shots . | . . . . . Rammed . | . . . . . Targets Rammed . | . . . . . Kicked . | . . . . . Crushed . | . . . . . Highest Temperature 56 | . 9 20 . 56 Average Temperature 13 | . 6 6 . 16 Received Heat Transfer 622 | . 171 72 . 379 Siege Activations . | . . . . . Martial Activations . | . . . . . Shielding Activations . | . . . . . Robots Disrupted . | . . . . . Combat Hostiles . | . . . . . Robots Corrupted . | . . . . . Combat Hostiles . | . . . . . Parts Fried . | . . . . . Impact Corruptions . | . . . . . Robots Melted . | . . . . . Combat Hostiles . | . . . . . Parts Melted . | . . . . . Heat Transferred . | . . . . . Parts Sabotaged . | . . . . . Parts Stolen . | . . . . . Parts Stripped . | . . . . . Power Chain Reactions . | . . . . . Alert | -11 -10 -10 -10 -9 ------- Run | Yrd Mat Min Exi Min Maximum Alert Level . | . . . . . Low Security (%) 100 | 100 100 100 . 100 Level 1 . | . . . . . Level 2 . | . . . . . Level 3 . | . . . . . Level 4 . | . . . . . Level 5 . | . . . . . High Security . | . . . . . Max Security . | . . . . . Peak Influence 155 | 10 67 155 . 81 Initial 19 | . . 19 . . Average 25 | 1 19 57 . 21 Influence Increases 741 | 30 415 215 . 81 Destroy 0b10 Robot/C 460 | . 260 140 . 60 Destroy 0b10 Robot/NC 80 | 30 50 . . . Destroy Leader 100 | . 60 30 . 10 Allied During Kill 11 | . . . . 11 Successful Hack 28 | . 28 . . . Destroy Structure 2 | . 2 . . . Lose Combat Pursuer 60 | . 15 45 . . Influence Decreases 741 | 30 363 228 39 81 Entered New Map 72 | . . 33 39 . Time Decay 618 | 30 363 195 . 30 Lost Part 30 | . . . . 30 Lost Ally 21 | . . . . 21 Squads Dispatched 1 | . 1 . . . Investigation . | . . . . . Extermination . | . . . . . Reinforcement 1 | . 1 . . . Assault . | . . . . . Garrison . | . . . . . Intercept . | . . . . . Searches Triggered . | . . . . . Construction Impeded . | . . . . . Haulers Reinforced . | . . . . . Active Scanning Responses . | . . . . . Cargo Convoy Interrupts . | . . . . . Stealth | -11 -10 -10 -10 -9 --------- Run | Yrd Mat Min Exi Min Distress Signals . | . . . . . Communications Jammed . | . . . . . Distress Signals . | . . . . . Times Spotted 57 | . 19 10 . 28 Peak Tracking Total 20 | . 3 5 . 20 Tactical Retreats 3 | . 1 1 . 1 Traps | -11 -10 -10 -10 -9 ------- Run | Yrd Mat Min Exi Min Traps Triggered 2 | . 2 . . . Indirectly . | . . . . . Trap Hack Attempts . | . . . . . Triggered . | . . . . . Disarmed . | . . . . . Reprogrammed . | . . . . . Reused . | . . . . . Traps Extracted . | . . . . . Installed . | . . . . . Triggered . | . . . . . Machines | -11 -10 -10 -10 -9 ---------- Run | Yrd Mat Min Exi Min Machines Disabled . | . . . . . Max in Single Turn . | . . . . . Machines Repaired . | . . . . . Machines Dismantled . | . . . . . Machines Sabotaged . | . . . . . Overloaded Fab Kills . | . . . . . Hacking | -11 -10 -10 -10 -9 --------- Run | Yrd Mat Min Exi Min Machines Accessed 10 | . 9 . 1 . Terminals 7 | . 7 . . . Fabricators . | . . . . . Repair Stations 1 | . 1 . . . Recycling Units 1 | . 1 . . . Scanalyzers . | . . . . . Garrison Access . | . . . . . Total Hacks 25 | . 24 . 1 . Successful 13 | . 12 . 1 . Failed 11 | . 11 . . . Catastrophic 3 | . 3 . . . Database Lockouts 1 | . 1 . . . Manual 19 | . 18 . 1 . Terminals 20 | . 20 . . . Fabricators . | . . . . . Repair Stations 2 | . 2 . . . Recycling Units 2 | . 2 . . . Scanalyzers . | . . . . . Garrison Access . | . . . . . Terminal Hacks 8 | . 7 . 1 . Robot Analysis 1 | . 1 . . . Prototype ID Bank 3 | . 3 . . . Level Access Points 1 | . 1 . . . Hauler Manifests 1 | . 1 . . . Registered Components 1 | . 1 . . . Proto ID Catalog 1 | . . . 1 . Fabricator Hacks . | . . . . . Repair Station Hacks 2 | . 2 . . . Scan Component 1 | . 1 . . . Repair 1 | . 1 . . . Recycling Unit Hacks . | . . . . . Scanalyzer . | . . . . . Garrison Access Hacks . | . . . . . Unauthorized Hacks 3 | . 3 . . . Terminals 1 | . 1 . . . Botnet 1 | . 1 . . . Fabricators . | . . . . . Repair Stations . | . . . . . Recycling Units 2 | . 2 . . . Recyclers 1 | . 1 . . . Mask 1 | . 1 . . . Scanalyzers . | . . . . . Garrison Access . | . . . . . Data Cores Recovered . | . . . . . Used . | . . . . . Hacking Detections 6 | . 6 . . . Full Trace Events . | . . . . . Feedback Events . | . . . . . Feedback Blocked . | . . . . . Robot Schematics Acquired . | . . . . . Robots Built . | . . . . . Authchips . | . . . . . Time . | . . . . . Total Robot Build Rating . | . . . . . Part Schematics Acquired . | . . . . . Parts Built . | . . . . . Authchips . | . . . . . Time . | . . . . . Total Part Build Rating . | . . . . . Part Studies Acquired . | . . . . . Parts Repaired 1 | . 1 . . . Time 26 | . 26 . . . Parts Recycled . | . . . . . Recycled Matter . | . . . . . Retrieved Matter . | . . . . . Retrieved Components . | . . . . . Parts Scanalyzed . | . . . . . Part Schematics Acquired . | . . . . . Parts Damaged . | . . . . . Bothacking | -11 -10 -10 -10 -9 ------------ Run | Yrd Mat Min Exi Min Used RIF Installer . | . . . . . Robots Hacked . | . . . . . Non-combat . | . . . . . Combat . | . . . . . Robot Hacks Applied . | . . . . . Relay Couplers Released . | . . . . . Fabnet Peak Effective % . | . . . . . Robots Rewired . | . . . . . Allies Hacked . | . . . . . Hacks Repelled . | . . . . . Allies | -11 -10 -10 -10 -9 -------- Run | Yrd Mat Min Exi Min Total Allies 3 | . . 3 . . Largest Group 3 | . . 3 3 3 Highest-Rated Group 40 | . . 40 40 40 Highest-Rated Ally 16 | . . 16 16 16 Total Orders . | . . . . . Ally Attacks 20 | . . . . 20 Total Damage 238 | . . . . 238 Kills 5 | . . . . 5 Allies Corrupted . | . . . . . Allies Melted . | . . . . . Intel | -11 -10 -10 -10 -9 ------- Run | Yrd Mat Min Exi Min Active Infowar (turns) 2148 | 115 1788 245 . . Terrain 219 | 115 104 . . . Machine Analysis 1929 | . 1684 245 . . Robot Analysis Total 1 | . 1 . . . Derelict Logs Recovered . | . . . . . Drone Launches . | . . . . . Drone Recoveries . | . . . . . Exploration | -11 -10 -10 -10 -9 ------------- Run | Yrd Mat Min Exi Min Turns Passed 3210 | 190 1789 524 515 192 Spaces Moved 1314 | 75 773 197 236 33 Core 6 | 6 . . . . Treads 1214 | 69 773 197 170 5 Legs . | . . . . . Wheels 94 | . . . 66 28 Hover . | . . . . . Flight . | . . . . . Fastest Speed 50 | 50 160 240 155 155 Average Speed 202 | 151 195 240 216 167 Slowest Speed 240 | 160 240 240 240 240 Overloaded Moves . | . . . . . Propulsion Burnouts . | . . . . . Robots Hopped . | . . . . . Potential Cave-ins . | . . . . . Cave-ins Triggered . | . . . . . Exploration Rate (%) 41 | 3 98 39 61 8 Regions Visited 4 Branch Regions 3 Pre-discovered Areas 1 | . . 1 . . Known Exits Taken . | . . . . . Unknown Exits Taken 4 | 1 1 1 1 . Scrap Searched . | . . . . . Spaces Dug . | . . . . . Terrain Destroyed . | . . . . . Melee . | . . . . . Projectile . | . . . . . AOE . | . . . . . Terrain Rammed . | . . . . . Walls Destroyed . | . . . . . Machines Disabled . | . . . . . Actions | -11 -10 -10 -10 -9 --------- Run | Yrd Mat Min Exi Min Total 1619 | 116 950 222 242 89 Wait 91 | . 80 9 1 1 Move 1310 | 74 772 196 235 33 Hop . | . . . . . Pick Up 31 | 12 16 1 1 1 Fast Attach 9 | 7 2 . . . Attach 10 | . . 1 . 9 Detach 2 | . 1 1 . . Swap 10 | . 8 . 1 1 Drop 23 | 4 13 . 4 2 Fire 133 | 19 58 14 . 42 Melee . | . . . . . Ram . | . . . . . Kick . | . . . . . Crush . | . . . . . Escape Stasis . | . . . . . Rewire . | . . . . . Trap . | . . . . . Miscellaneous . | . . . . . Route ------- -11/Scrapyard -10/Materials (discovered 6 exits: *Mat x3 / [*Min x2] / [*Sub]) -10/Mines -10/Exiles (discovered 2 exits: [*Min x2]) -9/Mines History --------- Turn | Location | Event 13 | -11/Scrapyard | Discovered new exit (range 15) 191 | -11/Scrapyard | Entered Materials 317 | -10/Materials | Build established: Mutant 339 | -10/Materials | Repaired Lgt. Assault Rifle 503 | -10/Materials | Discovered new exit (range 5) 794 | -10/Materials | Central database locked down 802 | -10/Materials | Discovered new exit (range 8) 823 | -10/Materials | Discovered new exit (range 11) 971 | -10/Materials | Discovered new exit (range 16) 1083 | -10/Materials | Discovered new exit (range 10) 1145 | -10/Materials | Discovered new exit (range 13) 1836 | -10/Materials | Identified exit to Materials 1980 | -10/Materials | Entered Mines 2150 | -10/Mines | Learned location of Storage (-7) 2428 | -10/Mines | Assisted by bots powering up and referring to "LRC-V3" 2492 | -10/Mines | Deemed a non-threat by the Exiles lab entrance 2495 | -10/Mines | Discovered new exit (range 5) 2504 | -10/Mines | Entered Exiles 2504 | -10/Exiles | Accompanied by 3 allies 2536 | -10/Exiles | Discovered new exit (range 15) 2564 | -10/Exiles | Met 8R-AWN 2603 | -10/Exiles | Met EX-HEX 2677 | -10/Exiles | Met EX-BIN 2704 | -10/Exiles | Aligned with FarCom system 2706 | -10/Exiles | Given EX-Vault access code 2766 | -10/Exiles | Opened EX-Vault 2782 | -10/Exiles | Found Flying Fortress v7 2831 | -10/Exiles | Warned to stay clear of 0b10 Research branches 2866 | -10/Exiles | Exiles lab attacked by MAIN.C 3000 | -10/Exiles | Discovered new exit (range 14) 3019 | -10/Exiles | Left Exiles lab with Flying Fortress v7 3019 | -10/Exiles | Entered Mines 3019 | -9/Mines | Accompanied by 3 allies 3031 | -9/Mines | Met a Derelict bent on vengeance 3053 | -9/Mines | Assembled infested the area 3058 | -9/Mines | Assisted by a Guerilla fighting off Assembled 3093 | -9/Mines | Core integrity fell below 50% 3129 | -9/Mines | Lost 3 allies 3146 | -9/Mines | Lost 5 parts (1p1n1u2w) 3172 | -9/Mines | Core integrity fell below 20% 3191 | -9/Mines | Destroyed 9 combat bots 3211 | -9/Mines | Destroyed by as-01729 with Assembled F-torch Last Messages --------------- 03170_ as-70796 destroyed. 03171_ Extracted 6 matter. 03179_ Assault Rifle destroyed. 03180_ Extracted 10 matter. 03181_ Extracted 7 matter. 03184_ Propulsion Shielding destroyed. 03184_ System corrupted by crushing effect (+4). 03187_ Extracted 10 matter. 03188_ Extracted 7 matter. 03190_ Destroyed Asb. Hover Unit. 03191_ Extracted 7 matter. 03193_ as-32033 destroyed. 03194_ Extracted 7 matter. 03198_ Assault Rifle destroyed. 03200_ Extracted 10 matter. 03203_ Mercenary 1a destroyed. 03207_ Destroyed Asb. Hover Unit. 03210_ as-48227 destroyed. 03210_ as-45282 suffers critical hit (Blast). 03210_ as-45282 destroyed. Map ----- +----------------------------------------------------+ | ????????????????????????????????????????????? | | ????????????????????????????????????????????? | | ????????????????????????????????????????????? | | ????????????????????????????????????????????? | | ????????????????????????????????????????????? | | ????????????????????????????????????????????? | | ????????????????????????????????????????????? | | ????????????????????????????????????????????? | | ????????????????????????????????????????????? | | ????????????????????????????????????????????? | | ????????????????????????????????????????????? | | ????????????????????????????????????????????? | | ????????????????????????????????????????????? | | ????????????????????????????????????????????? | | ????????????????????????????????????????????? | | ????????????????????????????????????????????? | | ????????????????????????????????????????????? | | ????????????????????????????????????????????? | | ????????????????????????????????????????????? | | ????????????????????????????????????????????? | | ??????????????????????????###???????????????? | | ?????????????????????????## #???????????????? | | ?????????????????????????# ##??????????????? | | ?????????????????????????# ####???????????? | | ????????????????????###### $ ##??????????? | | ?????????????????#??#=a=%@! #??????????? | | ?????????????#####""#a###=% ## #?????????? | | ???????????# %%=#?### #???????????????? | | ?????? % %%%#???# #???????????????? | | ??????#" ######"#"#?### ######??????????? | | ??????????????????### #?# #??????????? | | ????????????????????###?# #??????????? | | ????????????????????????# #??????????? | | ????????????????????????# #??????????? | | ????????????????????????# %!=*#??????????? | | ????????????????????????# ==% #??????????? | | ????????????????????????# %[[ #??????????? | | ????????????????????????# ! #??????????? | | ????????????????????????##########??????????? | | ????????????????????????????????????????????? | | | | | | | | | | | | | | | | | | | | | +----------------------------------------------------+ Best States ------------- Heat Dissipation 25 Energy Generation 14 Energy Capacity 250 Matter Stores 300 Matter Capacity 300 Sight Range 16 Terrain Scan Range 16 Terrain Scan Density 10 Armor Coverage 150 Propulsion Shielding 33 Evasion (%) 40 Recoil Reduction 2 Item Schematics ----------------- None Robot Schematics ------------------ None Fabricated ------------ Nothing Repaired ---------- Lgt. Assault Rifle | 63% | -10/Materials Studied --------- None Alien Tech Used ----------------- None Achievements -------------- None Challenges ------------ None Game ------ Seed LauncherThermoelectricPod Manual? 0 Play Time 00:16:53 Cumulative 134.2 hours Start 2026.03.01 @ 06:49:17 End 2026.03.01 @ 07:06:21 Sessions 1 Manual Loads 0 Difficulty Rogue Special Mode None Game No. 88 Rogue 84 Adventurer 4 Explorer 0 Win Type - Total 6 Types 6/0/0/0/0/0/0/0/0/0 Lore% 76 Gallery% 54 Achievement% 46 Wizard Run 0 Options --------- Layout 0 ASCII 0 Keyboard 1 Movement Vi Keybinds 0 Fullscreen 0 Font 16/SmallcapsGlow Map View 76x50 Zoom Use 0% Tactical HUD 1 Map Filters NONE Filters NONE Steam 1 RUN: dc2dd98d-c1cc-4b46-b6c8-ef6757638978